bitfinex/quotes_ETHUSD_20241106
["timestamp","ask_amount","ask_price","bid_price","bid_amount"]
[1730895454666,3.77516,2648.9,2648.3,4.58276]
[1730895454952,3.77516,2648.9,2648.3,0.8068]
[1730895455112,7.55043,2648.9,2648.3,0.8068]
[1730895455319,4.568082,2648.8,2648.3,0.8068]
[1730895455518,3.77583,2648.5,2647.9,0.771]
[1730895456070,0.792792,2648.8,2648.0,0.0755166]
[1730895456369,0.792792,2648.8,2648.4,3.77574]
[1730895456511,3.77515,2648.9,2648.2,3.77608]
[1730895456714,7.55041,2648.9,2648.2,3.77608]
[1730895456928,3.77515,2648.9,2648.3,3.776]
[1730895457127,0.377515,2648.8,2648.2,3.77608]
[1730895457788,0.377515,2648.8,2648.5,3.77566]
[1730895458094,3.77509,2649.0,2648.3,3.77591]
[1730895458382,0.7741,2649.4,2648.1,3.77621]
[1730895458383,3.77531,2648.8,2648.2,3.7761]
[1730895458591,0.755049,2648.7,2648.1,7.5524]
[1730895458772,3.77518,2648.9,2648.2,3.77605]
[1730895459670,3.77518,2648.9,2648.1,3.77619]
[1730895459891,3.77518,2648.9,2648.3,3.776]
[1730895460088,3.77571,2648.6,2647.9,4.54749]
[1730895460260,3.77539,2648.8,2648.1,3.7762]
[1730895460593,3.77573,2648.5,2647.9,4.54748]
[1730895460883,3.77559,2648.6,2647.9,4.54748]
[1730895460884,7.55128,2648.6,2647.9,4.54748]
[1730895461084,3.77559,2648.6,2647.9,4.54748]
[1730895461285,3.77559,2648.6,2647.2,0.02]
[1730895461495,3.77573,2648.5,2647.9,3.77648]
[1730895461665,0.456359,2648.5,2647.9,3.77648]
[1730895461859,3.77609,2648.3,2647.7,3.77678]
[1730895462068,3.77609,2648.3,2647.2,3.77756]
[1730895462069,3.77563,2648.6,2647.8,3.77671]
[1730895462272,3.77573,2648.5,2647.9,3.77648]
[1730895462479,0.456363,2648.5,2647.9,3.77648]
[1730895462690,4.232093,2648.5,2647.8,3.85223138]
[1730895462903,3.7759,2648.4,2647.8,3.85223138]
[1730895463057,0.456363,2648.5,2648.0,3.77632]
[1730895463585,0.456363,2648.5,2647.8,4.66609138]
[1730895463586,3.7751,2649.0,2648.4,3.77573]
[1730895464084,3.77515,2648.9,2648.4,3.77573]
[1730895464391,3.77517,2648.9,2648.4,3.77573]
[1730895464561,3.7751,2649.0,2648.5,3.77569]
[1730895464888,3.7751,2649.0,2648.6,3.77552]
[1730895464889,0.83714,2649.0,2648.6,3.77552]
[1730895465606,0.83714,2649.0,2648.4,3.7758]
[1730895465760,4.61217,2649.0,2648.4,3.77577]
[1730895467104,0.83714,2649.0,2648.5,3.77564]
[1730895467398,0.543356,2648.9,2648.5,3.77564]
[1730895467777,0.543356,2648.9,2648.2,3.77605]
[1730895468099,0.543356,2648.9,2648.5,3.77565]
[1730895468268,0.83714,2649.0,2648.5,3.77565]
[1730895468661,0.83714,2649.0,2648.4,3.77582]
[1730895468864,4.61223,2649.0,2648.4,3.77582]
[1730895469166,3.77532,2648.8,2647.8,4.59057]
[1730895469387,4.152972,2648.7,2648.1,3.77628]
[1730895469596,4.152972,2648.7,2648.1,3.85179452]
[1730895469870,0.377532,2648.7,2648.2,3.77613]
[1730895470183,4.153052,2648.7,2648.1,0.07551452]
[1730895470385,0.377532,2648.7,2648.1,0.07551452]
[1730895470698,3.7754,2648.8,2648.2,3.77609]
[1730895470908,0.8215,2649.1,2648.2,3.77609]
[1730895471510,3.775,2649.0,2648.2,3.77609]
[1730895471700,3.775,2649.0,2648.3,3.776]
[1730895471873,3.775,2649.0,2648.4,3.77574]
[1730895472081,11.925209,2650.0,2648.5,0.807]
[1730895472386,3.77451,2649.4,2648.8,3.77518]
[1730895472703,0.8129,2649.4,2648.5,0.807]
[1730895472909,1.271629,2649.4,2648.9,3.77503]
[1730895473087,1.271629,2649.4,2649.0,0.07549204]
[1730895473294,1.271629,2649.4,2648.7,3.77532]
[1730895473899,3.77458,2649.3,2648.7,3.77532]
[1730895474502,3.77458,2649.3,2648.8,3.77528]
[1730895474683,0.5046209,2649.2,2648.8,3.77528]
[1730895474885,1.271629,2649.4,2648.9,3.77512]
[1730895475877,1.271629,2649.4,2648.5,0.807]
[1730895476076,1.74180369,2649.8,2649.3,3.77447]
[1730895476501,5.51566369,2649.8,2649.3,3.77447]
[1730895476805,5.51568369,2649.8,2649.3,3.77447]
[1730895477009,1.74180369,2649.8,2649.4,3.77437]
[1730895477174,0.8096,2649.8,2649.4,3.77437]
[1730895477374,11.905229,2650.0,2649.5,3.77429]
[1730895477586,11.905129,2650.0,2649.5,3.77429]
[1730895477882,8.131539,2650.0,2649.5,3.77429]
[1730895478080,11.905119,2650.0,2649.5,3.77429]
[1730895478407,1.6476039,2649.9,2649.3,3.77446]
[1730895478706,1.6476039,2649.9,2649.4,3.77436]
[1730895479767,1.6476039,2649.9,2649.1,0.7968]
[1730895480069,1.6476039,2649.9,2649.5,3.77426]
[1730895480276,8.131539,2650.0,2649.5,3.77426]
[1730895480673,8.131539,2650.0,2649.5,3.77419]
[1730895480921,8.131539,2650.0,2649.1,4.57165]
[1730895480922,8.131539,2650.0,2649.7,3.77392]
[1730895481320,8.131539,2650.0,2649.8,3.77384]
[1730895481625,8.131539,2650.0,2649.8,3.77379]
[1730895482321,8.131539,2650.0,2649.9,3.77372]
[1730895482483,8.131539,2650.0,2649.8,3.77379]
[1730895482678,8.131539,2650.0,2649.9,3.77372]
[1730895482912,8.131539,2650.0,2649.8,3.77379]
[1730895483125,8.131539,2650.0,2649.6,3.77406]
[1730895483417,8.131539,2650.0,2649.5,0.075471]
[1730895483621,8.131539,2650.0,2649.3,0.829]
[1730895483831,8.131539,2650.0,2649.6,3.77409]
[1730895484028,3.77387,2649.8,2649.3,4.60357]
[1730895484319,3.77389,2649.8,2649.0,4.57271]
[1730895484522,3.77466,2649.3,2648.8,3.77526]
[1730895484692,3.7748,2649.2,2648.7,0.7978]
[1730895485020,3.77466,2649.3,2648.6,3.77547]
[1730895485202,0.7586,2649.4,2648.9,3.77507]
[1730895485720,0.7586,2649.4,2648.8,3.77528]
[1730895485901,0.7586,2649.4,2649.0,3.77493]
[1730895486414,4.5392,2649.7,2649.1,3.77485]
[1730895486611,5.07443539,2649.7,2649.1,3.77485]
[1730895486795,3.77437,2649.5,2648.9,3.77511]
[1730895487003,1.30033539,2649.7,2648.8,3.77519]
[1730895487204,3.77422,2649.6,2649.0,3.775]
[1730895487406,3.77436,2649.5,2648.8,3.77523]
[1730895487618,3.77436,2649.5,2648.9,3.77514]
[1730895487796,3.77479,2649.2,2648.5,3.77559]
[1730895488101,3.77502,2649.0,2648.5,3.77571]
[1730895488310,0.7651,2649.7,2648.6,0.0755014]
[1730895488311,3.77458,2649.3,2648.6,0.0755014]
[1730895488525,3.77465,2649.3,2648.5,3.77562]
[1730895488817,3.77465,2649.3,2648.0,4.27932699]
[1730895488818,3.7754,2648.8,2648.2,3.77605]
[1730895489021,3.77539,2648.8,2648.2,3.77605]
[1730895489222,0.377465,2649.3,2648.1,3.77628]
[1730895489389,8.36362,2648.4,2647.8,3.77664]
[1730895489585,3.77668,2647.9,2647.4,4.53134]
[1730895489812,3.77668,2647.9,2647.3,3.77741]
[1730895490088,7.55276,2648.1,2647.4,0.07553506]
[1730895490292,3.77637,2648.1,2647.4,3.77724]
[1730895490517,3.77665,2647.9,2647.2,3.77748]
[1730895490686,3.77686,2647.7,2647.2,3.77748]
[1730895491026,4.55476,2647.7,2647.2,3.77748]
[1730895491230,0.7779,2647.7,2647.2,7.6305122]
[1730895491529,0.7779,2647.7,2647.3,3.77742]
[1730895491822,0.7779,2647.7,2647.2,3.8530222]
[1730895492323,0.7779,2647.7,2647.3,3.8528522]
[1730895492523,0.7779,2647.7,2647.3,3.77731]
[1730895492697,0.7779,2647.7,2647.2,3.77748]
[1730895493421,3.7773,2647.4,2646.8,3.77801]
[1730895493623,3.77708,2647.6,2647.0,3.77784]
[1730895493786,0.7779,2647.7,2647.1,0.07555002]
[1730895493991,4.55489,2647.7,2647.1,3.77769]
[1730895494186,0.7779,2647.7,2647.2,3.77753]
[1730895494527,0.7779,2647.7,2647.2,7.55493]
[1730895495117,0.7779,2647.7,2647.3,3.7774]
[1730895495543,0.7779,2647.7,2647.3,3.85294106]
[1730895495733,0.7779,2647.7,2647.4,3.77726]
[1730895495901,7.55302,2648.0,2647.4,3.77726]
[1730895496099,0.8088,2648.1,2647.4,0.8145]
[1730895496339,0.8088,2648.1,2647.6,3.77699]
[1730895496644,0.8088,2648.1,2647.4,0.8145]
[1730895496645,0.81,2648.5,2647.7,0.07552554]
[1730895496807,0.81,2648.5,2648.2,3.77608]
[1730895497003,1.268543,2648.5,2647.5,3.77707]
[1730895497222,1.268543,2648.5,2647.4,4.59176]
[1730895497223,3.7765,2648.0,2647.4,4.59176]
[1730895497938,4.58575,2648.5,2647.5,3.77704]
[1730895497939,3.77628,2648.2,2647.5,3.77704]
[1730895498141,3.77644,2648.0,2647.5,3.85257449]
[1730895498345,7.553,2648.0,2647.4,4.59176]
[1730895498654,3.77644,2648.0,2647.5,3.7771]
[1730895498980,0.81,2648.5,2647.6,3.77695]
[1730895499240,3.77654,2648.0,2647.4,3.77718]
[1730895499447,3.77654,2648.0,2647.4,3.77723]
[1730895499822,3.7766,2647.9,2647.4,3.77723]
[1730895500005,3.77674,2647.8,2647.3,3.77742]
[1730895500201,3.77654,2648.0,2647.4,3.77721]
[1730895500443,0.81,2648.5,2647.5,0.07553418]
[1730895500603,3.77651,2648.0,2647.4,3.77719]
[1730895500806,0.7603,2647.9,2647.4,3.77719]
[1730895501019,3.77673,2647.8,2647.2,3.77747]
[1730895501247,3.77688,2647.7,2647.2,3.77747]
[1730895501545,3.77686,2647.7,2647.2,3.77748]
[1730895501705,3.78605,2648.3,2647.0,0.7883]
[1730895501706,3.77651,2648.0,2647.4,3.77721]
[1730895501911,3.77657,2648.0,2647.4,3.77721]
[1730895502131,3.77657,2648.0,2647.5,3.77712]
[1730895502656,3.77657,2648.0,2647.5,3.77711]
[1730895502872,3.7763,2648.1,2647.5,3.77711]
[1730895503161,3.77659,2647.9,2647.3,3.77732]
[1730895503362,3.77659,2647.9,2647.0,0.7883]
[1730895503363,8.00965,2648.1,2647.5,3.77707]
[1730895503975,3.77644,2648.0,2647.5,3.77707]
[1730895504125,4.38029223,2648.0,2647.5,3.77707]
[1730895504333,0.45698,2648.1,2647.5,3.77708]
[1730895504531,6.7756,2648.6,2647.3,0.07553441]
[1730895504532,0.8126,2648.6,2647.9,3.77654]
[1730895504835,0.8126,2648.6,2647.7,0.7974]
[1730895504836,3.77588,2648.4,2647.7,3.77676]
[1730895505045,3.77617,2648.2,2647.7,3.77676]
[1730895505256,3.77617,2648.2,2647.6,3.777]
[1730895505456,3.77635,2648.1,2647.6,3.777]
[1730895505826,3.77617,2648.2,2647.6,7.55391]
[1730895506027,3.77617,2648.2,2647.7,3.7768]
[1730895506441,3.77602,2648.3,2647.8,3.85217062]
[1730895507089,3.77574,2648.5,2647.8,0.07553062]
[1730895507255,3.77593,2648.4,2647.4,4.57465]
[1730895507451,3.77595,2648.4,2647.8,3.7766]
[1730895507868,3.77595,2648.4,2647.7,0.07552439]
[1730895508169,3.77595,2648.4,2647.8,3.77672]
[1730895508376,4.6582624,2648.4,2647.8,3.77672]
[1730895509393,3.77558,2648.6,2648.0,0.7812]
[1730895509578,3.77436,2649.5,2648.9,3.77503]
[1730895509790,4.5998,2649.7,2649.0,3.775]
[1730895509972,4.23616,2649.6,2649.0,3.775]
[1730895510151,3.7743,2649.5,2649.0,3.775]
[1730895510804,3.77431,2649.5,2649.0,3.77491]
[1730895511095,3.77431,2649.5,2648.9,3.85064305]
[1730895511480,3.77457,2649.4,2648.7,3.77536]
[1730895511687,3.7748,2649.2,2648.6,3.77556]
[1730895512008,3.77424,2649.6,2648.9,3.77502]
[1730895512190,3.77474,2649.2,2648.5,3.77558]
[1730895512363,3.77474,2649.2,2648.7,3.77535]
[1730895512364,0.377474,2649.2,2648.7,3.77535]
[1730895512971,0.377474,2649.2,2648.7,7.55066]
[1730895513302,0.377474,2649.2,2648.6,3.85105844]
[1730895514003,0.7605,2649.1,2648.6,0.07549844]
[1730895514243,4.53548,2649.1,2648.6,0.07550355]
[1730895514535,5.4042474,2649.1,2648.6,0.07550355]
[1730895514911,5.4042474,2649.1,2648.6,3.85107355]
[1730895515602,0.7605,2649.1,2648.7,3.7753]
[1730895515802,0.7605,2649.1,2648.8,3.77528]
[1730895516000,0.7699,2649.4,2648.9,3.85055897]
[1730895516240,0.7699,2649.4,2649.0,3.77499]
[1730895516539,0.7699,2649.4,2649.0,3.77492]
[1730895516758,4.54679,2649.8,2649.1,3.850243]
[1730895516902,3.02409,2649.7,2649.1,3.77475]
[1730895517101,3.02409,2649.7,2649.1,7.54954]
[1730895517102,3.781178,2649.7,2649.1,7.54954]
[1730895517334,3.781178,2649.7,2649.1,3.77475]
[1730895517535,0.7729,2649.8,2649.2,0.07548587]
[1730895517707,0.7729,2649.8,2649.4,3.77431]
[1730895517926,0.7729,2649.8,2649.4,3.77436]
[1730895518129,4.54677,2649.8,2649.3,3.77457]
[1730895518329,3.77402,2649.7,2649.2,3.77461]
[1730895518526,0.7729,2649.8,2649.2,3.77461]
[1730895518747,0.02,2649.8,2649.2,0.7787]
[1730895518921,0.02,2649.8,2649.6,3.77407]
[1730895519264,8.131539,2650.0,2649.6,3.77407]
[1730895519421,8.131539,2650.0,2649.7,3.77392]
[1730895519760,8.131539,2650.0,2649.7,3.84939175]
[1730895520149,8.131539,2650.0,2649.5,3.7742]
[1730895520350,8.131539,2650.0,2649.6,3.77406]
[1730895520554,9.3220229,2650.0,2649.5,3.77428]
[1730895520868,3.7738,2649.9,2649.3,3.77454]
[1730895521067,3.7738,2649.9,2648.9,0.7787]
[1730895521068,3.77409,2649.7,2649.1,3.77475]
[1730895521244,0.452449,2649.6,2649.1,3.77475]
[1730895521440,4.226619,2649.6,2649.1,3.77475]
[1730895521634,4.226619,2649.6,2649.0,3.85048708]
[1730895521828,3.7743,2649.5,2649.0,0.07548708]
[1730895522164,4.52519,2649.2,2648.7,3.77534]
[1730895522772,4.52512,2649.2,2648.7,3.77534]
[1730895522979,0.7504,2649.2,2648.6,0.07549895]
[1730895523266,3.77496,2649.1,2648.6,0.07549895]
[1730895523637,7.54995,2649.1,2648.6,0.07549895]
[1730895524355,3.77496,2649.1,2648.6,0.07549895]
[1730895524556,3.77505,2649.0,2648.6,0.07549895]
[1730895525077,3.77505,2649.0,2648.1,0.7791]
[1730895525078,3.77516,2648.9,2648.1,0.7791]
[1730895525279,3.77489,2649.1,2648.2,0.07550725]
[1730895525490,3.77489,2649.1,2648.1,3.77622]
[1730895525491,4.57469,2648.6,2648.1,3.68262725]
[1730895525643,4.57469,2648.6,2648.0,3.77639]
[1730895525842,4.57469,2648.6,2648.1,0.07551559]
[1730895526043,3.77581,2648.5,2648.1,0.07551559]
[1730895526241,3.77587,2648.4,2647.9,3.77648]
[1730895526551,4.57478,2648.6,2647.9,3.8519988]
[1730895527076,0.7991,2648.6,2648.1,3.77625]
[1730895527382,3.77574,2648.5,2647.9,3.85200244]
[1730895527583,3.77587,2648.4,2647.9,3.85200244]
[1730895528075,3.77587,2648.4,2647.9,0.07551244]
[1730895528239,3.77575,2648.5,2648.0,3.77641]
[1730895529042,8.35041,2648.6,2648.0,3.77641]
[1730895529252,3.77588,2648.4,2648.1,0.07552129]
[1730895529478,3.77588,2648.4,2647.9,3.85206665]
[1730895529653,3.77588,2648.4,2647.9,3.77655]
[1730895530290,5.409741,2648.6,2648.0,3.85194787]
[1730895530445,3.7758,2648.5,2648.0,3.85194787]
[1730895531183,4.5747,2648.6,2648.0,0.07551787]
[1730895531386,3.77573,2648.5,2647.9,7.553]
[1730895531690,3.77573,2648.5,2648.0,0.07551787]
[1730895531975,3.77573,2648.5,2648.1,3.77624]
[1730895531976,3.77572,2648.5,2648.1,3.77624]
[1730895532176,4.5747,2648.6,2648.1,3.77624]
[1730895532366,3.77573,2648.5,2648.0,3.85193787]
[1730895532684,4.5747,2648.6,2648.1,3.77616]
[1730895532908,3.77506,2649.0,2648.5,3.77565]
[1730895533183,1.1105,2649.3,2648.7,3.77533]
[1730895533383,3.77451,2649.4,2648.9,3.77514]
[1730895533562,3.85001733,2649.4,2648.9,3.77514]
[1730895533747,3.77485,2649.2,2648.8,0.7798]
[1730895533954,3.77485,2649.2,2648.6,3.77549]
[1730895534185,3.77494,2649.1,2648.6,3.77549]
[1730895534686,0.07550733,2649.5,2648.5,0.8037]
[1730895534851,3.77507,2649.0,2648.5,4.5794]
[1730895535913,3.77515,2648.9,2648.6,0.07550223]
[1730895536049,3.77542,2648.8,2648.1,0.8059]
[1730895536251,3.77568,2648.6,2648.1,4.58208]
[1730895536484,3.77567,2648.6,2648.2,0.07550953]
[1730895536748,3.77524,2648.9,2648.2,3.85154953]
[1730895537058,7.5505,2648.9,2648.4,3.77578]
[1730895537271,3.77524,2648.9,2648.4,3.77578]
[1730895538989,3.85046733,2649.1,2648.5,3.85121732]
[1730895539373,3.77501,2649.0,2648.5,4.65781732]
[1730895539549,0.89450733,2649.2,2648.6,3.77545]
[1730895539750,3.77494,2649.1,2648.6,3.77545]
[1730895539946,0.89450733,2649.2,2648.7,3.77541]
[1730895540182,0.07550733,2649.2,2648.7,3.77541]
[1730895540749,3.77488,2649.1,2648.5,4.58218]
[1730895541102,3.77488,2649.1,2648.5,0.8066]
[1730895541266,3.77488,2649.1,2648.5,4.5822]
[1730895541455,3.77488,2649.1,2648.6,3.77555]
[1730895541650,3.77466,2649.3,2648.8,3.77525]
[1730895541651,3.85016733,2649.3,2648.8,3.77525]
[1730895541856,3.85016733,2649.3,2648.8,3.77522]
[1730895542771,0.07550733,2649.4,2648.6,3.77555]
[1730895542977,0.07550733,2649.4,2648.7,3.77543]
[1730895543185,0.07550733,2649.4,2648.5,0.8066]
[1730895543186,4.5545,2649.5,2649.0,3.77492]
[1730895543349,4.63000733,2649.5,2649.0,3.77492]
[1730895543778,0.85570733,2649.5,2649.1,3.77482]
[1730895543977,0.85570733,2649.5,2649.0,3.77492]
[1730895544803,4.63003733,2649.5,2649.0,3.77492]
[1730895545153,0.85570733,2649.5,2649.0,3.77492]
[1730895545353,0.85570733,2649.5,2649.1,3.77485]
[1730895545586,4.63001733,2649.5,2648.8,3.77518]
[1730895545894,4.63001733,2649.5,2649.0,3.77498]
[1730895546279,0.07550733,2649.5,2649.0,3.7749]
[1730895546995,3.7745,2649.4,2648.9,3.77509]
[1730895547379,4.61221406,2649.5,2648.9,3.77509]
[1730895547590,0.83790406,2649.5,2648.9,3.77509]
[1730895547774,4.23564641,2649.4,2648.9,3.77509]
[1730895548291,0.07550733,2649.5,2649.1,3.77484]
[1730895548500,0.07550733,2649.5,2649.0,4.59619]
[1730895548860,3.84982733,2649.5,2649.0,4.59619]
[1730895549488,3.84982733,2649.5,2649.0,3.77499]
[1730895549692,4.69323206,2649.5,2649.0,3.77499]
[1730895551462,0.91891206,2649.5,2649.0,3.77499]
[1730895551675,3.77447,2649.4,2648.9,3.77505]
[1730895551883,8.46777206,2649.5,2648.9,3.77505]
[1730895552182,3.77443,2649.5,2648.9,3.77505]
[1730895552385,0.88550733,2649.6,2649.2,3.77464]
[1730895552614,0.88550733,2649.6,2649.1,3.77485]
[1730895552820,1.35146806,2649.6,2649.1,3.77485]
[1730895553377,1.35146806,2649.6,2649.1,3.77486]
[1730895554733,1.35146806,2649.6,2649.2,3.77471]
[1730895555019,0.88550733,2649.6,2649.4,3.77442]
[1730895555224,0.84490733,2649.9,2649.5,3.77422]
[1730895555686,9.3220229,2650.0,2649.6,3.77408]
[1730895556082,9.3220229,2650.0,2649.5,3.77428]
[1730895556277,0.07550733,2649.9,2649.5,3.77428]
[1730895556715,0.07550733,2649.9,2649.4,3.77443]
[1730895556904,5.25133535,2649.9,2649.2,3.77463]
[1730895557088,3.77423,2649.6,2649.0,3.77489]
[1730895557288,3.77423,2649.6,2648.8,3.77519]
[1730895557289,3.77446,2649.4,2648.8,3.77519]
[1730895557488,4.61151733,2649.3,2648.8,3.77519]
[1730895557788,3.77472,2649.2,2648.7,3.77542]
[1730895558004,0.07550733,2649.1,2648.7,3.77541]
[1730895559170,4.61332873,2649.2,2648.8,3.77518]
[1730895559171,0.91411606,2649.2,2648.8,3.77518]
[1730895559292,0.07550733,2649.2,2648.9,3.77514]
[1730895559688,0.07550733,2649.2,2648.6,0.07550208]
[1730895559889,0.07550733,2649.5,2649.0,3.77493]
[1730895560128,3.84981733,2649.5,2649.0,3.77493]
[1730895560300,0.07550733,2649.5,2648.6,3.77557]
[1730895560506,3.77408,2649.7,2648.7,0.7705]
[1730895560833,0.377408,2649.6,2649.2,3.77459]
[1730895560997,0.07550733,2649.7,2649.3,3.77453]
[1730895561193,3.77418,2649.6,2649.0,3.7749]
[1730895561535,0.7845,2649.4,2648.9,3.77505]
[1730895561838,5.02240073,2649.4,2648.8,3.85069361]
[1730895562200,1.24794073,2649.4,2649.0,3.77498]
[1730895562591,3.85008733,2649.3,2648.8,3.77519]
[1730895562831,0.07550733,2649.3,2648.8,3.77519]
[1730895563017,3.85011733,2649.3,2648.8,3.77519]
[1730895563219,3.85011733,2649.3,2648.8,3.77529]
[1730895563930,3.85011733,2649.3,2648.7,4.54592]
[1730895564140,0.46346173,2649.2,2648.7,4.54592]
[1730895564343,3.77479,2649.2,2648.7,4.54581]
[1730895564629,3.77487,2649.1,2648.5,3.77563]
[1730895564937,0.76251673,2649.1,2648.7,3.77541]
[1730895565295,0.07550733,2649.3,2648.7,3.85091406]
[1730895565534,0.07550733,2649.3,2648.8,3.77522]
[1730895565700,3.85010733,2649.3,2648.8,3.77522]
[1730895565901,0.07550733,2649.3,2648.9,3.77503]
[1730895566232,0.07550733,2649.3,2648.9,3.77504]
[1730895566439,3.84994733,2649.4,2648.8,3.77519]
[1730895566762,7.62445733,2649.4,2648.8,3.77519]
[1730895566962,3.84994733,2649.4,2648.8,3.77519]
[1730895567426,3.77459,2649.3,2648.8,3.77519]
[1730895567627,1.00172176,2649.3,2648.8,3.77519]
[1730895567945,4.77637176,2649.3,2648.8,3.77519]
[1730895568620,4.77637176,2649.3,2648.7,3.85084805]
[1730895568621,3.77472,2649.2,2648.7,3.85084805]
[1730895568963,3.77472,2649.2,2648.6,7.62642088]
[1730895569253,3.77472,2649.2,2648.6,3.85095088]
[1730895569458,4.77630176,2649.3,2648.7,3.77543]
[1730895569627,4.62982418,2649.2,2648.7,3.77543]
[1730895569835,3.77486,2649.1,2648.6,3.85095088]
[1730895570057,3.85036733,2649.1,2648.6,3.77545]
[1730895570363,3.77524,2648.9,2648.3,3.77593]
[1730895570563,3.77524,2648.9,2648.0,0.01]
[1730895570564,3.77567,2648.6,2648.0,3.77636]
[1730895570774,3.85129733,2648.5,2648.0,3.85194998]
[1730895571135,3.85129733,2648.5,2648.0,3.77643]
[1730895571464,3.77579,2648.5,2648.0,3.85195112]
[1730895572123,3.85108733,2648.6,2648.1,3.77621]
[1730895572626,3.85095733,2648.7,2648.2,3.77608]
[1730895572838,1.67077233,2648.8,2648.2,0.07551737]
[1730895573042,5.44613233,2648.8,2648.2,3.85157737]
[1730895573243,5.44613233,2648.8,2648.2,0.07551737]
[1730895573448,5.44613233,2648.8,2648.3,3.77599]
[1730895573959,0.83900733,2648.8,2648.3,3.776]
[1730895574266,0.7635,2648.8,2648.3,3.77587]
[1730895574466,0.7635,2648.8,2648.5,3.77569]
[1730895574858,4.60097,2649.1,2648.6,3.77557]
[1730895575151,0.8261,2649.1,2648.7,3.77541]
[1730895575356,0.8261,2649.1,2648.7,3.77534]
[1730895575568,0.8261,2649.1,2648.8,3.77529]
[1730895575744,0.8261,2649.1,2648.9,3.77512]
[1730895575934,0.92160733,2649.4,2648.9,3.77512]
[1730895576135,1.31569873,2649.4,2648.9,7.55018]
[1730895576335,1.39120606,2649.4,2648.9,3.77506]
[1730895576853,5.16564606,2649.4,2648.9,3.77506]
[1730895577057,0.92160733,2649.4,2649.0,3.775]
[1730895577247,4.69611733,2649.4,2648.8,3.85071769]
[1730895577445,0.8461,2649.4,2648.9,3.77506]
[1730895577665,4.62058,2649.4,2648.9,3.77506]
[1730895577845,4.69608733,2649.4,2648.9,3.77506]
[1730895578050,4.69608733,2649.4,2648.7,3.77533]
[1730895578243,3.77469,2649.3,2648.7,3.77533]
[1730895578574,3.77488,2649.1,2648.5,3.77561]
[1730895578746,3.85053733,2649.0,2648.5,3.77561]
[1730895579141,3.85053733,2649.0,2648.4,3.85134081]
[1730895579750,4.55596,2648.9,2648.4,3.77584]
[1730895580084,9.17182473,2648.9,2648.4,3.77584]
[1730895580243,8.33119,2648.9,2648.3,7.55182]
[1730895580445,4.55596,2648.9,2648.3,7.55182]
[1730895580754,4.55596,2648.9,2648.4,3.77582]
[1730895581353,4.55596,2648.9,2648.3,3.77589]
[1730895581354,3.77531,2648.8,2648.3,3.77589]
[1730895581644,0.07550733,2648.7,2648.2,7.55218]
[1730895581860,3.85097733,2648.7,2648.2,3.77604]
[1730895582170,0.8269,2648.4,2647.9,3.7765]
[1730895582366,0.07550733,2648.3,2647.7,4.60784]
[1730895582583,0.8269,2648.4,2647.8,3.8522336]
[1730895582780,4.34483432,2648.3,2647.6,3.77694]
[1730895582997,0.8269,2648.4,2647.7,0.0755306]
[1730895583275,0.8269,2648.4,2647.1,4.53628]
[1730895583276,3.85150733,2648.3,2647.8,3.77665]
[1730895583478,3.77618,2648.2,2647.6,3.77691]
[1730895583659,3.85150733,2648.3,2647.7,3.77684]
[1730895584056,3.85150733,2648.3,2647.7,3.85236817]
[1730895584302,3.85150733,2648.3,2647.6,3.77691]
[1730895584303,0.8184,2648.2,2646.4,3.78867]
[1730895584599,4.69015733,2648.2,2647.6,3.77693]
[1730895584795,0.91390733,2648.2,2647.1,0.7605]
[1730895585092,0.91390733,2648.2,2647.8,7.55316]
[1730895585093,0.8384,2648.2,2647.8,7.55316]
[1730895585296,0.8384,2648.2,2647.8,3.77658]
[1730895585597,0.8384,2648.2,2647.7,3.77684]
[1730895585889,0.91390733,2648.2,2647.6,7.55382]
[1730895586098,4.69012733,2648.2,2647.6,3.77691]
[1730895586479,5.53674206,2648.2,2647.6,3.77691]
[1730895586682,5.53674206,2648.2,2647.6,3.7769]
[1730895587062,5.53674206,2648.2,2647.7,3.77684]
[1730895587577,5.53674206,2648.2,2647.8,7.55325]
[1730895587578,0.8384,2648.2,2647.8,7.55325]
[1730895587785,0.8384,2648.2,2647.9,3.77657]
[1730895588395,0.02,2648.2,2647.8,0.7882]
[1730895588557,0.02,2648.2,2648.1,3.77629]
[1730895589000,0.02,2648.2,2648.0,3.77636]
[1730895589397,0.7955,2648.1,2647.8,3.77662]
[1730895589924,0.02,2648.2,2647.8,3.77662]
[1730895590625,0.02,2648.2,2647.8,7.55327]
[1730895590796,0.02,2648.2,2647.8,3.77662]
[1730895591119,0.02,2648.2,2648.1,3.77629]
[1730895592317,0.7714,2648.4,2648.1,3.77629]
[1730895592894,0.7714,2648.4,2647.4,0.784]
[1730895593131,0.7714,2648.4,2648.1,3.77618]
[1730895593901,0.7714,2648.4,2647.9,3.77644]
[1730895594105,0.7714,2648.4,2648.0,3.85188112]
[1730895594421,0.02,2648.4,2648.2,3.77604]
[1730895594624,0.8198,2648.7,2648.4,3.77576]
[1730895595022,0.8198,2648.7,2648.2,7.55211]
[1730895595318,1.279301,2648.7,2648.2,7.55211]
[1730895595537,1.279301,2648.7,2648.3,3.77592]
[1730895595888,0.8198,2648.7,2648.4,3.77579]
[1730895596084,0.02,2648.7,2648.4,7.55154]
[1730895596328,0.02,2648.7,2648.4,3.77575]
[1730895596626,0.02,2648.7,2648.2,3.85154888]
[1730895596860,0.02,2648.7,2648.3,3.77599]
[1730895597158,0.02,2648.7,2648.4,3.77585]
[1730895597624,0.02,2648.7,2648.5,3.77569]
[1730895598156,0.02,2648.7,2648.0,0.8176]
[1730895598364,3.7754,2648.8,2648.3,3.77599]
[1730895598654,3.85090733,2648.8,2648.3,3.77599]